bitfinex/quotes_SOLUSD_20251125
["timestamp","ask_amount","ask_price","bid_price","bid_amount"]
[1764050312055,16.308864,138.83,138.81,9.51994492]
[1764050312456,26.41819332,138.83,138.8,22.0043903]
[1764050312675,26.41819332,138.83,138.8,4.0]
[1764050313175,26.41819332,138.83,138.81,0.71]
[1764050313358,26.41819332,138.83,138.8,4.0]
[1764050313984,26.41819332,138.83,138.8,3.29]
[1764050314189,25.74819332,138.83,138.81,0.71]
[1764050315382,23.51192371,138.83,138.81,0.71]
[1764050315575,26.41819332,138.83,138.81,0.71]
[1764050316178,26.41819332,138.83,138.8,4.0]
[1764050316896,25.74819332,138.83,138.8,4.0]
[1764050317073,0.67,138.82,138.8,4.0]
[1764050317482,2.90626961,138.82,138.8,3.29]
[1764050317800,18.54513361,138.81,138.8,0.11]
[1764050318095,19.21513361,138.81,138.8,0.11]
[1764050318898,26.41922553,138.81,138.8,0.11]
[1764050321070,29.30720791,138.81,138.8,0.11]
[1764050322590,0.67,138.8,138.78,0.11]
[1764050322766,2.23626961,138.79,138.78,0.11]
[1764050323799,7.20513005,138.79,138.78,0.82]
[1764050326692,7.20513005,138.79,138.78,0.11]
[1764050327085,7.20513005,138.79,138.78,0.82]
[1764050328397,2.23626961,138.79,138.78,0.82]
[1764050328996,2.90626961,138.79,138.78,0.11]
[1764050330801,10.11139966,138.79,138.78,0.11]
[1764050332298,10.11139966,138.79,138.77,0.2]
[1764050332483,2.90626961,138.78,138.77,0.2]
[1764050332679,29.60078283,138.78,138.77,0.2]
[1764050342311,23.51451322,138.78,138.77,0.9]
[1764050342516,28.93078283,138.78,138.77,0.2]
[1764050342921,29.62078283,138.78,138.77,0.2]
[1764050343114,29.62078283,138.78,138.73,0.2]
[1764050343115,55.88998434,138.78,138.73,0.2]
[1764050343320,27.49021205,138.74,138.73,0.2]
[1764050343500,30.67021205,138.74,138.73,0.2]
[1764050343693,31.36021205,138.74,138.73,0.2]
[1764050344695,38.56793873,138.74,138.73,0.2]
[1764050347705,25.75286029,138.74,138.73,0.9]
[1764050348112,9.44399629,138.74,138.73,0.9]
[1764050348323,25.75286029,138.74,138.73,0.9]
[1764050348500,27.01437387,138.74,138.73,0.9]
[1764050349324,18.01343216,138.79,138.74,8.80994492]
[1764050349524,3.49778319,138.77,138.74,9.50994492]
[1764050349816,3.49778319,138.77,138.75,0.7]
[1764050351224,10.70435617,138.77,138.75,0.7]
[1764050353435,3.49778319,138.76,138.73,0.2]
[1764050353721,3.49778319,138.74,138.73,0.2]
[1764050353933,3.49778319,138.75,138.73,0.2]
[1764050354118,19.80664719,138.75,138.74,0.7]
[1764050355017,16.308864,138.75,138.74,0.7]
[1764050359828,18.01095375,138.81,138.75,8.80994492]
[1764050360132,16.308864,138.78,138.75,12.30772811]
[1764050360427,16.308864,138.78,138.76,0.7]
[1764050360806,45.02278551,138.8,138.76,0.7]
[1764050361231,3.49778319,138.79,138.76,0.7]
[1764050361908,10.70337727,138.79,138.76,0.7]
[1764050364942,16.308864,138.77,138.76,0.7]
[1764050373134,23.51503248,138.77,138.76,0.7]
[1764050376732,18.00957624,138.82,138.76,0.98432314]
[1764050376936,3.49778319,138.8,138.77,8.80994492]
[1764050377128,16.308864,138.79,138.78,3.18]
[1764050377325,16.308864,138.79,138.78,3.88]
[1764050377745,19.80664719,138.79,138.78,3.88]
[1764050379521,27.01177724,138.79,138.78,3.18]
[1764050380035,45.69460237,138.79,138.76,3.18]
[1764050380230,3.49778319,138.77,138.76,3.18]
[1764050380655,4.16778319,138.77,138.74,3.46432314]
[1764050380855,3.49778319,138.76,138.74,4.16432314]
[1764050381043,3.49778319,138.76,138.75,9.50994492]
[1764050381443,3.49778319,138.77,138.75,9.50994492]
[1764050381641,10.70357907,138.78,138.76,0.7]
[1764050386858,11.37357907,138.78,138.76,0.7]
[1764050387246,10.70357907,138.78,138.76,0.7]
[1764050388633,10.70357907,138.78,138.75,8.80994492]
[1764050388857,3.49778319,138.77,138.76,0.7]
[1764050390060,10.70357907,138.78,138.76,0.7]
[1764050393855,16.308864,138.78,138.76,0.7]
[1764050394051,27.71135757,138.8,138.76,8.19099253]
[1764050394443,27.71135757,138.8,138.77,0.67]
[1764050394762,27.71135757,138.8,138.77,3.85]
[1764050395459,3.49778319,138.79,138.77,3.85]
[1764050397056,23.51357438,138.8,138.78,8.80994492]
[1764050397275,27.01135757,138.8,138.78,9.50994492]
[1764050397954,27.01135757,138.8,138.79,0.7]
[1764050398470,19.80664719,138.8,138.79,0.7]
[1764050398966,19.80664719,138.8,138.78,8.80994492]
[1764050399156,19.80664719,138.8,138.78,9.50994492]
[1764050400269,27.71128338,138.8,138.78,9.50994492]
[1764050401158,4.19778319,138.79,138.77,3.18]
[1764050401350,0.7,138.79,138.77,3.88]
[1764050401581,3.49778319,138.79,138.77,3.88]
[1764050402482,10.70299535,138.79,138.77,3.88]
[1764050403546,11.40299535,138.79,138.77,3.18]
[1764050403872,11.40299535,138.79,138.77,3.88]
[1764050404054,11.40299535,138.79,138.77,3.18]
[1764050404251,4.19778319,138.78,138.77,3.18]
[1764050404461,11.40377141,138.78,138.75,11.98994492]
[1764050404767,3.49778319,138.76,138.75,11.98994492]
[1764050405173,4.19778319,138.76,138.75,11.98994492]
[1764050405384,3.49778319,138.76,138.75,11.98994492]
[1764050405865,7.2066878,138.76,138.75,11.98994492]
[1764050406066,7.2066878,138.76,138.75,3.18]
[1764050406067,11.40447099,138.76,138.75,3.18]
[1764050408075,11.40447099,138.76,138.73,12.88994492]
[1764050408380,10.70447099,138.76,138.74,0.7]
[1764050408585,17.008864,138.77,138.74,0.7]
[1764050408758,19.24681034,138.77,138.74,0.7]
[1764050409253,26.45303879,138.77,138.74,0.7]
[1764050412265,2.93794634,138.76,138.74,0.7]
[1764050412460,24.21509245,138.77,138.74,0.7]
[1764050412890,0.7,138.82,138.77,8.80994492]
[1764050413060,8.95178536,138.88,138.78,3.18]
[1764050413061,2.93794634,138.81,138.78,3.18]
[1764050413259,19.24681034,138.81,138.78,3.18]
[1764050413455,19.24681034,138.81,138.78,3.88]
[1764050413881,26.45130092,138.81,138.78,3.88]
[1764050414104,24.21335458,138.81,138.78,3.88]
[1764050414682,2.23794634,138.79,138.78,3.18]
[1764050414886,0.7,138.8,138.78,3.88]
[1764050415194,16.308864,138.79,138.78,3.18]
[1764050415562,16.308864,138.79,138.78,3.88]
[1764050416395,7.2049258,138.8,138.78,3.88]
[1764050416614,7.9049258,138.8,138.78,3.88]
[1764050417066,10.14287214,138.8,138.78,3.88]
[1764050417394,16.308864,138.79,138.78,11.98994492]
[1764050417769,16.308864,138.8,138.79,8.80994492]
[1764050417964,18.54681034,138.8,138.79,8.80994492]
[1764050418694,26.45142129,138.8,138.78,3.18]
[1764050418891,2.93794634,138.79,138.78,3.18]
[1764050419962,2.23794634,138.79,138.78,3.18]
[1764050420389,24.21347495,138.8,138.78,3.18]
[1764050420578,2.23794634,138.79,138.78,3.18]
[1764050422090,26.45142129,138.8,138.78,3.18]
[1764050428678,26.45142129,138.8,138.78,3.87]
[1764050428993,26.45142129,138.8,138.78,3.18]
[1764050430298,25.75142129,138.8,138.78,3.87]
[1764050431607,23.51347495,138.8,138.78,3.87]
[1764050431810,24.23347495,138.8,138.78,3.87]
[1764050432200,24.23347495,138.8,138.78,3.18]
[1764050432683,24.23347495,138.8,138.78,3.87]
[1764050432885,24.23347495,138.8,138.78,3.18]
[1764050434790,26.47142129,138.8,138.78,3.18]
[1764050435400,16.308864,138.8,138.79,0.69]
[1764050435786,16.308864,138.8,138.78,3.87]
[1764050436201,23.51353473,138.8,138.78,3.87]
[1764050436784,26.47148107,138.8,138.78,3.18]
[1764050436986,25.75148107,138.8,138.78,3.18]
[1764050437299,2.95794634,138.79,138.78,3.18]
[1764050437501,9.44307639,138.79,138.78,3.18]
[1764050438016,26.47161754,138.8,138.78,3.18]
[1764050439394,0.72,138.79,138.78,3.18]
[1764050439794,25.75161754,138.8,138.78,3.18]
[1764050440102,26.47161754,138.8,138.78,3.18]
[1764050442411,25.75161754,138.8,138.78,3.87]
[1764050443090,26.47161754,138.8,138.78,3.87]
[1764050443490,24.2336712,138.8,138.78,3.87]
[1764050445798,26.47161754,138.8,138.78,3.87]
[1764050447812,2.95794634,138.79,138.78,3.18]
[1764050448795,26.47194039,138.79,138.78,3.18]
[1764050448995,25.75194039,138.79,138.78,3.18]
[1764050449728,26.47194039,138.79,138.78,3.18]
[1764050451296,25.75194039,138.79,138.78,3.18]
[1764050451922,26.47194039,138.79,138.78,3.18]
[1764050453597,44.48476552,138.79,138.75,12.27426806]
[1764050453809,2.23794634,138.77,138.75,12.27426806]
[1764050454204,2.89794634,138.77,138.75,12.99426806]
[1764050455996,2.23794634,138.76,138.73,9.00994492]
[1764050456303,2.23794634,138.76,138.73,3.38]
[1764050456304,2.23794634,138.74,138.73,3.38]
[1764050456625,18.54681034,138.74,138.73,3.38]
[1764050456823,19.23681034,138.74,138.73,3.38]
[1764050457510,26.44453702,138.74,138.73,3.38]
[1764050458223,24.20659068,138.74,138.73,3.38]
[1764050458422,26.44453702,138.74,138.73,3.38]
[1764050460320,26.44453702,138.74,138.73,0.2]
[1764050463206,56.59563908,138.74,138.71,0.2]
[1764050463407,18.54681034,138.72,138.71,0.2]
[1764050463614,25.75557619,138.72,138.71,0.2]
[1764050463813,29.33543639,138.72,138.71,0.2]
[1764050469039,29.33543639,138.72,138.71,0.03]
[1764050469434,0.69,138.71,138.7,0.06]
[1764050469628,19.23681034,138.71,138.7,0.06]
[1764050470018,22.12667054,138.71,138.68,0.3905]
[1764050470220,16.308864,138.69,138.68,0.2205]
[1764050470531,16.308864,138.69,138.65,10.99668868]
[1764050471146,7.2107578,138.69,138.65,10.99668868]
[1764050472646,7.2107578,138.69,138.67,0.67]
[1764050475449,7.2107578,138.69,138.66,3.38]
[1764050475963,11.40073115,138.69,138.66,3.38]
[1764050476339,10.71073115,138.69,138.66,3.38]
[1764050476736,11.40073115,138.69,138.66,3.38]
[1764050477660,0.69,138.68,138.66,3.38]
[1764050477955,19.80883735,138.67,138.66,3.38]
[1764050478331,20.49883735,138.67,138.66,3.38]
[1764050478934,27.71020246,138.67,138.66,0.2]
[1764050479535,16.308864,138.67,138.66,0.2]
[1764050480346,24.00630381,138.69,138.66,0.60216157]
[1764050480663,16.308864,138.69,138.66,3.78216157]
[1764050481163,20.49883735,138.69,138.66,3.38]
[1764050482560,27.70937702,138.69,138.66,3.38]
[1764050482736,27.70937702,138.69,138.66,3.64]
[1764050483447,11.40051302,138.69,138.66,3.38]
[1764050487060,11.40046307,138.69,138.66,3.38]
[1764050488064,0.69,138.71,138.67,12.85424141]
[1764050488235,4.18997335,138.74,138.69,12.59424141]
[1764050488441,4.18997335,138.74,138.7,3.18]
[1764050488749,0.69,138.73,138.7,3.18]
[1764050489663,7.20838689,138.73,138.7,3.44]
[1764050489962,0.69,138.73,138.7,3.18]
[1764050491241,27.70608197,138.75,138.71,9.35426806]
[1764050491441,7.89586122,138.78,138.73,9.09426806]
[1764050491765,27.70469857,138.78,138.74,3.18]
[1764050491958,0.69,138.77,138.74,3.18]
[1764050492156,4.18997335,138.77,138.74,3.18]
[1764050492870,20.49883735,138.77,138.74,3.18]
[1764050493073,27.7050263,138.77,138.74,3.18]
[1764050494748,16.308864,138.77,138.74,10.6475569]
[1764050494951,20.49883735,138.77,138.74,10.6475569]
[1764050495458,20.49883735,138.77,138.74,10.3875569]
[1764050496977,20.49883735,138.77,138.74,10.6475569]
[1764050498082,4.18997335,138.77,138.74,10.6475569]
[1764050498570,4.18997335,138.77,138.74,10.3875569]
[1764050499171,0.69,138.77,138.74,10.3875569]
[1764050500056,4.18997335,138.77,138.74,3.18]
[1764050500453,11.39614526,138.77,138.74,3.18]
[1764050501073,4.18997335,138.77,138.74,3.18]
[1764050501281,4.18997335,138.77,138.74,10.38770441]
[1764050501457,4.18997335,138.77,138.74,3.18]
[1764050501658,0.69,138.76,138.74,3.18]
[1764050502284,4.18997335,138.76,138.74,3.18]
[1764050502681,4.18997335,138.75,138.74,12.27426806]
[1764050502976,4.18997335,138.76,138.74,3.18]
[1764050503175,3.49997335,138.75,138.74,3.18]
[1764050504180,4.18997335,138.75,138.74,3.18]
[1764050506082,0.69,138.75,138.74,3.18]
[1764050507377,7.8972072,138.75,138.74,3.18]
[1764050507578,11.39718055,138.75,138.74,3.18]
[1764050507882,11.39718055,138.75,138.72,11.98994492]
[1764050508072,4.18997335,138.74,138.72,3.18]
[1764050508274,3.49997335,138.73,138.72,3.18]
[1764050508464,4.18997335,138.73,138.72,3.18]
[1764050508984,20.49883735,138.73,138.72,3.18]
[1764050509372,27.70708358,138.73,138.7,11.98994492]
[1764050509577,4.18997335,138.72,138.7,11.98994492]
[1764050512690,11.39881388,138.72,138.7,11.98994492]
[1764050513778,16.308864,138.69,138.66,0.2]
[1764050513988,16.308864,138.68,138.66,0.2]
[1764050514189,3.49997335,138.67,138.66,0.2]
[1764050514412,0.67,138.67,138.66,3.38]
[1764050514876,3.49997335,138.67,138.66,3.38]
[1764050515075,0.67,138.67,138.66,3.38]
[1764050515277,4.16997335,138.67,138.66,3.38]
[1764050515668,0.67,138.67,138.66,3.38]
[1764050515864,4.16997335,138.67,138.66,3.38]
[1764050518168,16.308864,138.69,138.66,3.38]
[1764050518461,3.49997335,138.67,138.66,3.38]
[1764050518862,4.21997335,138.67,138.66,3.38]
[1764050519274,0.72,138.67,138.66,3.38]
[1764050519475,4.21997335,138.67,138.66,3.38]
[1764050520796,0.72,138.67,138.66,3.38]
[1764050521370,23.51925856,138.69,138.66,3.38]
[1764050521571,3.49997335,138.72,138.67,12.85424141]
[1764050521889,20.52883735,138.72,138.67,62.85424141]
[1764050522071,17.028864,138.72,138.69,9.09426806]
[1764050522271,16.308864,138.71,138.7,3.18]
[1764050522791,0.72,138.72,138.7,3.18]
[1764050524977,16.308864,138.73,138.71,0.26]
[1764050525168,3.49997335,138.74,138.71,0.26]
[1764050525493,16.308864,138.74,138.71,9.35426806]
[1764050526072,17.028864,138.74,138.71,16.56347208]
[1764050526274,17.028864,138.74,138.71,20.06344543]
[1764050526475,16.308864,138.74,138.72,9.06994492]
[1764050526697,16.308864,138.74,138.73,3.18]
[1764050529697,17.028864,138.74,138.73,3.18]
[1764050530484,27.73656403,138.74,138.68,0.26]
[1764050530797,0.72,138.73,138.69,11.98994492]
[1764050531301,0.72,138.73,138.7,0.28432314]
[1764050531508,2.95913923,138.73,138.7,0.28432314]
[1764050535622,2.95913923,138.73,138.7,7.49406627]
[1764050536414,2.23913923,138.73,138.7,7.75406627]
[1764050536796,0.72,138.76,138.72,0.28432314]
[1764050537000,2.95913923,138.75,138.72,3.18]
[1764050537395,0.72,138.74,138.72,3.18]
[1764050538295,0.72,138.74,138.72,10.38862816]
[1764050539817,0.72,138.74,138.72,3.18]
[1764050540321,0.72,138.74,138.72,10.38875714]
[1764050541734,9.44594254,138.76,138.73,9.09426806]
[1764050541896,16.308864,138.77,138.73,11.59340729]
[1764050542222,2.95913923,138.78,138.74,0.26]
[1764050542418,2.95913923,138.78,138.75,3.18]
[1764050543304,0.72,138.78,138.75,10.64709915]
[1764050543519,0.72,138.78,138.75,10.38709915]
[1764050544000,0.72,138.78,138.75,12.62623838]
[1764050544189,0.7,138.83,138.79,0.28432314]
[1764050544392,2.23913923,138.8,138.79,0.28432314]
[1764050544625,9.44375018,138.8,138.79,3.18]
[1764050544811,10.14375018,138.8,138.77,3.18]
[1764050545005,2.23913923,138.78,138.77,3.18]
[1764050545519,2.93913923,138.78,138.77,3.18]
[1764050549537,2.23913923,138.79,138.77,3.18]
[1764050549722,9.44381254,138.8,138.77,3.18]
[1764050549922,10.14381254,138.8,138.77,3.18]
[1764050550642,0.7,138.79,138.77,3.18]
[1764050550934,9.44381254,138.8,138.77,3.18]
[1764050551116,10.14381254,138.8,138.77,3.18]
[1764050551315,9.44381254,138.8,138.77,3.18]
[1764050551524,0.7,138.79,138.77,3.18]
[1764050552022,18.00706064,138.84,138.78,11.59340729]
[1764050552339,2.93913923,138.83,138.79,2.23913923]
[1764050552517,0.7,138.83,138.8,3.18]
[1764050553028,17.008864,138.83,138.8,3.18]
[1764050553329,0.7,138.83,138.8,3.18]
[1764050553532,17.008864,138.83,138.8,3.18]
[1764050553913,16.308864,138.83,138.8,12.88369283]
[1764050554739,16.308864,138.83,138.81,0.26]
[1764050555242,2.93913923,138.84,138.8,12.88369283]
[1764050556016,26.45056981,138.84,138.8,12.88369283]
[1764050556627,2.23913923,138.82,138.8,3.18]
[1764050556834,2.23913923,138.81,138.76,8.80994492]
[1764050557054,2.93913923,138.8,138.77,3.18]
[1764050557427,0.7,138.79,138.77,3.18]
[1764050557946,0.7,138.8,138.77,3.18]
[1764050558534,2.93913923,138.8,138.77,3.18]
[1764050559560,0.7,138.79,138.77,3.18]
[1764050559844,10.14432516,138.79,138.77,3.18]
[1764050560234,0.7,138.78,138.77,3.18]
[1764050566058,0.7,138.78,138.75,8.80994492]
[1764050566059,10.14478845,138.78,138.73,3.18]
[1764050566356,2.23913923,138.76,138.73,3.18]
[1764050566743,0.7,138.75,138.73,3.18]
[1764050568146,0.7,138.76,138.73,3.18]
[1764050568355,2.93913923,138.76,138.73,3.18]
[1764050568737,0.7,138.75,138.73,3.18]
[1764050569653,2.93913923,138.75,138.73,3.18]
[1764050571456,0.7,138.74,138.73,3.18]
[1764050572661,2.23913923,138.75,138.73,3.18]
[1764050572858,2.93913923,138.75,138.73,3.18]
[1764050573486,9.44643049,138.75,138.73,3.18]
[1764050573650,0.71,138.74,138.73,3.18]
[1764050575944,2.94913923,138.75,138.73,3.18]
[1764050576381,0.71,138.74,138.73,3.18]
[1764050578676,2.94913923,138.75,138.73,3.18]
[1764050579574,9.44652487,138.75,138.73,3.18]
[1764050579744,10.15652487,138.75,138.73,3.18]
[1764050580985,0.71,138.74,138.73,3.18]
[1764050581284,26.46572991,138.74,138.67,18.28774203]
[1764050581488,2.23913923,138.71,138.68,12.13210649]
[1764050581781,2.23913923,138.71,138.69,0.14216157]
[1764050581981,41.53590738,138.74,138.69,0.40216157]
[1764050581982,0.71,138.72,138.69,0.40216157]
[1764050582152,0.71,138.73,138.7,8.80994492]
[1764050582354,16.308864,138.72,138.71,3.18]
[1764050582573,18.01700628,138.76,138.72,9.09426806]
[1764050582574,0.71,138.75,138.72,9.09426806]
[1764050582949,7.2063421,138.77,138.72,16.30290818]
[1764050583172,0.71,138.77,138.73,2.49913923]
[1764050583348,0.71,138.77,138.74,3.18]
[1764050583548,16.308864,138.76,138.74,3.18]
[1764050583748,18.54800323,138.76,138.74,3.18]
[1764050583945,19.25800323,138.76,138.74,3.18]
[1764050584780,24.22569535,138.76,138.74,3.18]
[1764050584982,17.018864,138.76,138.74,3.18]
[1764050585351,0.71,138.76,138.74,3.18]
[1764050586267,2.94913923,138.76,138.74,3.18]
[1764050586457,10.15583828,138.76,138.74,3.18]
[1764050586782,2.94913923,138.75,138.74,3.18]
[1764050587076,28.17436444,138.75,138.72,3.18]
[1764050587275,2.23913923,138.73,138.72,3.18]
[1764050587652,2.94913923,138.73,138.72,3.18]
[1764050588477,0.71,138.73,138.72,3.18]
[1764050588776,2.94913923,138.73,138.72,3.18]
[1764050589984,10.15738546,138.73,138.67,9.09426806]
[1764050590152,2.23913923,138.71,138.68,3.18]
[1764050590651,0.71,138.7,138.68,3.18]
[1764050591383,16.308864,138.74,138.69,9.09426806]
[1764050591563,4.20964991,138.73,138.69,9.35426806]
[1764050591875,0.71,138.73,138.69,12.85391797]
[1764050592095,4.20964991,138.73,138.69,12.85391797]
[1764050592499,11.4179853,138.73,138.69,20.06402092]
[1764050592668,10.7079853,138.73,138.69,20.06402092]
[1764050592868,0.71,138.72,138.69,9.35426806]
[1764050593798,4.20964991,138.72,138.69,9.09426806]
[1764050594471,4.20964991,138.72,138.69,16.56457266]
[1764050595994,4.20964991,138.72,138.69,16.30457266]
[1764050597492,11.41842992,138.72,138.69,16.30457266]
[1764050598491,11.41842992,138.72,138.69,16.56457266]
[1764050598794,7.91878001,138.72,138.69,16.56457266]
[1764050599397,0.71,138.72,138.69,16.56457266]
[1764050599605,10.70804294,138.73,138.69,20.06422257]
[1764050599910,11.41804294,138.73,138.69,20.06422257]
[1764050601010,0.71,138.72,138.69,20.06422257]
[1764050604905,0.71,138.72,138.69,19.80422257]
[1764050606012,0.71,138.72,138.69,16.30457266]
[1764050606589,7.91880831,138.72,138.69,16.30457266]
[1764050608712,7.91880831,138.72,138.7,3.18]
[1764050609089,16.308864,138.74,138.71,9.09426806]
[1764050609289,0.68,138.73,138.72,3.18]
[1764050609725,7.88735897,138.75,138.72,3.18]
[1764050610009,0.68,138.74,138.72,3.18]
[1764050610212,0.68,138.75,138.72,6.67964991]
[1764050610511,0.68,138.75,138.72,6.93964991]
[1764050611091,0.68,138.75,138.72,6.67964991]
[1764050611310,7.88732522,138.75,138.72,6.67964991]
[1764050611514,7.88732522,138.75,138.72,3.18]
[1764050611693,0.68,138.74,138.72,3.18]
[1764050613027,16.988864,138.76,138.73,9.09426806]
[1764050613201,16.988864,138.76,138.73,20.0619653]
[1764050613517,0.68,138.76,138.73,19.8019653]
[1764050614633,0.68,138.76,138.74,3.18]
[1764050616905,16.308864,138.77,138.75,9.09426806]
[1764050617133,16.988864,138.77,138.76,3.18]
[1764050617307,0.68,138.77,138.76,3.18]
[1764050619608,7.88616848,138.77,138.76,3.18]
[1764050619931,29.40123959,138.77,138.74,3.18]
[1764050620109,4.17964991,138.76,138.74,3.18]
[1764050620510,0.68,138.75,138.74,3.18]
[1764050621717,20.48851391,138.78,138.74,3.9]
[1764050622042,16.988864,138.78,138.75,9.81426806]
[1764050622434,16.988864,138.78,138.75,13.31391797]
[1764050622643,7.20527974,138.79,138.75,19.80106517]
[1764050622942,7.88468183,138.8,138.76,4.21964991]
[1764050623147,0.68,138.79,138.77,3.18]
[1764050625058,11.38433174,138.8,138.77,3.18]
[1764050625765,10.70433174,138.8,138.77,3.18]
[1764050625959,0.68,138.79,138.77,3.18]
[1764050627156,7.88409192,138.81,138.78,9.09426806]
[1764050627336,18.00830806,138.83,138.8,8.80994492]
[1764050627337,0.68,138.83,138.8,8.80994492]
[1764050627655,0.68,138.82,138.8,11.98994492]
[1764050627829,4.17964991,138.82,138.8,11.98994492]
[1764050628232,0.68,138.82,138.8,11.98994492]
[1764050628432,16.988864,138.82,138.8,11.98994492]
[1764050630768,0.68,138.81,138.8,12.27426806]
[1764050630937,27.69210038,138.82,138.8,11.98994492]
[1764050631344,0.68,138.81,138.8,12.27426806]
[1764050631539,27.69210038,138.82,138.8,12.27426806]
[1764050632040,24.19245047,138.82,138.8,12.27426806]
[1764050632858,16.988864,138.82,138.8,12.27426806]
[1764050633562,16.308864,138.82,138.8,12.27426806]
[1764050633961,16.978864,138.82,138.8,12.27426806]
[1764050637371,16.308864,138.82,138.8,12.27426806]
[1764050637666,16.308864,138.82,138.8,12.93426806]
[1764050638400,16.978864,138.82,138.8,12.27426806]
[1764050638601,0.67,138.81,138.8,12.27426806]
[1764050638781,16.978864,138.82,138.8,12.27426806]
[1764050639783,24.18249014,138.82,138.8,12.27426806]
[1764050639969,0.67,138.81,138.8,12.27426806]
[1764050640382,0.67,138.81,138.8,10.27926806]
[1764050640598,27.01214005,138.82,138.8,10.27926806]
[1764050640817,27.68214005,138.82,138.8,10.27926806]
[1764050641101,27.01214005,138.82,138.8,10.27926806]
[1764050641279,0.67,138.81,138.8,10.27926806]
[1764050642171,27.68214005,138.82,138.8,10.27926806]
[1764050642374,16.978864,138.82,138.8,10.27926806]
[1764050643086,4.16964991,138.81,138.78,8.80994492]
[1764050643396,3.49964991,138.8,138.78,11.98994492]
[1764050643702,3.49964991,138.79,138.78,3.18]
[1764050644006,4.16964991,138.79,138.77,8.80994492]
[1764050644179,16.308864,138.77,138.71,0.66]
[1764050644494,3.49964991,138.75,138.73,3.18]
[1764050644710,3.49964991,138.74,138.73,3.18]
[1764050645083,4.16964991,138.74,138.73,3.18]
[1764050645728,11.37737659,138.74,138.73,3.18]
[1764050646789,10.7068709,138.75,138.73,3.18]
[1764050647341,11.3768709,138.75,138.73,3.18]
[1764050647638,0.67,138.74,138.73,3.18]
[1764050647845,7.87772668,138.74,138.73,3.18]
[1764050648622,11.37737659,138.74,138.7,8.80994492]
[1764050648932,3.49964991,138.71,138.69,3.18]
[1764050649086,3.49964991,138.7,138.69,3.18]
[1764050649288,3.49964991,138.71,138.69,3.18]
[1764050649721,4.16964991,138.71,138.69,3.18]
[1764050650017,11.37894887,138.71,138.69,3.18]
[1764050650218,7.87929896,138.71,138.69,3.18]
[1764050650597,16.978864,138.74,138.71,0.14216157]
[1764050650799,16.308864,138.74,138.72,3.18]
[1764050651097,7.8767414,138.76,138.72,6.67964991]
[1764050651294,23.5156054,138.76,138.73,0.66]
[1764050652218,16.308864,138.76,138.74,8.80994492]
[1764050652404,10.70573606,138.78,138.75,3.18]
[1764050652594,0.67,138.77,138.75,3.18]
[1764050657602,7.87619615,138.77,138.75,3.18]
[1764050657995,23.51464368,138.78,138.75,3.18]
[1764050658195,0.67,138.81,138.77,11.04738256]
[1764050658505,7.20253529,138.84,138.79,11.3317057]
[1764050658818,2.23743764,138.83,138.79,11.3317057]
[1764050659120,2.90743764,138.83,138.79,11.9917057]
[1764050659430,10.11103053,138.82,138.79,9.09426806]
[1764050659897,0.67,138.81,138.79,9.09426806]
[1764050661015,2.23743764,138.82,138.79,9.09426806]
[1764050661200,2.90743764,138.82,138.79,9.09426806]
[1764050661720,26.41903492,138.84,138.8,0.66]
[1764050661915,16.308864,138.82,138.81,3.18]
[1764050667225,9.44012733,138.84,138.81,3.89]
[1764050667429,7.87268969,138.84,138.81,3.89]
[1764050668510,9.43966813,138.85,138.82,0.71]
[1764050669023,9.43966813,138.85,138.81,12.62147893]
[1764050669024,10.10966813,138.85,138.81,6.12743764]
[1764050669330,10.10966813,138.85,138.82,0.71]
[1764050669928,2.23743764,138.83,138.79,16.29905828]